bitfinex/quotes_SOLUSD_20250624
["timestamp","ask_amount","ask_price","bid_price","bid_amount"]
[1750725558002,5.70769071,144.1,144.07,29.08]
[1750725558905,5.70769071,144.09,144.07,29.08]
[1750725560119,5.70769071,144.1,144.07,29.08]
[1750725560988,5.70769071,144.1,144.07,36.02091992]
[1750725561517,5.70769071,144.11,144.07,41.72861063]
[1750725561699,31.11334185,144.13,144.07,41.72861063]
[1750725561898,5.70769071,144.12,144.07,41.72861063]
[1750725562703,0.14216157,144.16,144.09,5.70769071]
[1750725562902,5.70769071,144.13,144.1,29.06]
[1750725563108,5.70769071,144.12,144.11,29.06]
[1750725563611,26.0,144.14,144.11,29.06]
[1750725563796,5.70769071,144.12,144.11,29.06]
[1750725566127,5.70769071,144.12,144.09,29.06]
[1750725566305,5.70769071,144.1,144.09,29.06]
[1750725566619,18.64964886,144.12,144.09,29.06]
[1750725566823,5.70769071,144.11,144.09,29.06]
[1750725567123,5.70769071,144.12,144.09,29.06]
[1750725567419,5.70769071,144.13,144.09,29.06]
[1750725567919,5.70769071,144.13,144.09,36.00005592]
[1750725569227,5.70769071,144.11,144.09,29.06]
[1750725569402,5.70769071,144.12,144.09,29.06]
[1750725569802,26.0,144.14,144.09,36.00001583]
[1750725570030,5.70769071,144.12,144.09,36.00001583]
[1750725574329,5.70769071,144.13,144.09,36.00001583]
[1750725574705,18.64964886,144.15,144.09,29.06]
[1750725574907,5.70769071,144.12,144.09,36.00007422]
[1750725575234,5.70769071,144.13,144.09,36.00007422]
[1750725577124,5.70769071,144.12,144.09,29.06]
[1750725577329,23.76212359,144.15,144.09,36.00008527]
[1750725577523,5.70769071,144.12,144.09,36.00008527]
[1750725578348,5.70769071,144.1,144.09,29.06]
[1750725579522,5.70769071,144.1,144.06,13.80379071]
[1750725579725,5.70769071,144.1,144.07,29.04]
[1750725581127,18.64964886,144.12,144.07,29.04]
[1750725581551,5.70769071,144.1,144.07,29.04]
[1750725583654,5.70769071,144.1,144.07,35.98103482]
[1750725584232,5.70769071,144.11,144.07,35.98103482]
[1750725585140,5.70769071,144.11,144.08,29.04]
[1750725585343,31.70769071,144.12,144.08,29.04]
[1750725585640,31.70769071,144.12,144.08,34.74769071]
[1750725585833,31.70769071,144.12,144.08,41.68813251]
[1750725586334,31.70769071,144.12,144.08,35.9804418]
[1750725587542,5.70769071,144.12,144.08,35.9804418]
[1750725588143,5.70769071,144.13,144.08,131.08813251]
[1750725588320,5.70769071,144.13,144.09,5.70769071]
[1750725588516,5.70769071,144.13,144.1,29.04]
[1750725588942,5.70769071,144.12,144.1,29.04]
[1750725592347,5.70769071,144.11,144.1,29.04]
[1750725592667,26.0,144.08,144.01,6.48]
[1750725592962,18.64964886,144.07,144.03,29.02]
[1750725593322,23.77375277,144.07,144.03,29.02]
[1750725594152,5.70769071,144.04,144.03,29.02]
[1750725594655,5.70769071,144.04,144.01,6.48]
[1750725594841,5.70769071,144.03,144.02,29.04]
[1750725595157,23.77375277,144.07,144.02,29.04]
[1750725595326,5.70769071,144.04,144.02,29.04]
[1750725596346,5.70769071,144.05,144.02,29.04]
[1750725598536,5.70769071,144.04,144.02,29.04]
[1750725598935,23.77078213,144.07,144.02,29.04]
[1750725599138,5.70769071,144.05,144.02,29.04]
[1750725599336,5.70769071,144.05,144.02,35.98347841]
[1750725601063,5.70769071,144.06,144.02,35.98347841]
[1750725601248,5.70769071,144.06,144.02,35.98342254]
[1750725601447,5.70769071,144.07,144.02,41.69111325]
[1750725601959,5.70769071,144.07,144.03,5.70769071]
[1750725602162,5.70769071,144.09,144.04,7.34599071]
[1750725602336,5.70769071,144.09,144.05,34.74769071]
[1750725602734,5.70769071,144.09,144.05,29.04]
[1750725603235,5.70769071,144.08,144.05,29.04]
[1750725605569,5.70769071,144.07,144.05,35.52]
[1750725605741,5.70769071,144.06,144.05,35.52]
[1750725606474,5.70769071,144.07,144.05,35.52]
[1750725607769,5.70769071,144.06,144.05,35.52]
[1750725611611,6.85667328,144.1,144.05,35.52]
[1750725611612,5.70769071,144.07,144.05,35.52]
[1750725611755,5.70769071,144.08,144.05,35.52]
[1750725611948,5.70769071,144.09,144.05,35.52]
[1750725612576,5.12231171,144.11,144.05,42.46181288]
[1750725612889,18.64964886,144.11,144.05,42.46181288]
[1750725613191,5.70769071,144.09,144.05,48.16950359]
[1750725613357,5.70769071,144.1,144.06,7.32589071]
[1750725613554,5.70769071,144.1,144.07,29.02]
[1750725615273,5.70769071,144.1,144.07,35.96104883]
[1750725615869,5.70769071,144.11,144.07,35.96104883]
[1750725616386,5.70769071,144.12,144.07,41.66873954]
[1750725617986,5.70769071,144.12,144.08,5.70769071]
[1750725618175,5.70769071,144.12,144.09,29.02]
[1750725619382,5.70769071,144.11,144.09,29.02]
[1750725619582,26.0,144.15,144.09,29.02]
[1750725619583,5.70769071,144.12,144.09,29.02]
[1750725620584,5.70769071,144.12,144.09,35.96003445]
[1750725620998,5.70769071,144.13,144.09,35.96003445]
[1750725621497,5.12231171,144.16,144.09,125.36003445]
[1750725621801,5.12231171,144.17,144.09,131.06772516]
[1750725622012,5.70769071,144.14,144.1,5.70769071]
[1750725622170,5.70769071,144.15,144.11,35.5]
[1750725622377,5.70769071,144.16,144.11,41.20769071]
[1750725622573,5.70769071,144.16,144.11,47.66749071]
[1750725622883,5.12231171,144.17,144.11,47.66749071]
[1750725623083,5.70769071,144.16,144.12,1.5928]
[1750725623293,5.70769071,144.17,144.13,29.02]
[1750725623479,26.0,144.18,144.13,29.02]
[1750725623480,5.70769071,144.16,144.13,29.02]
[1750725623682,5.70769071,144.14,144.13,29.02]
[1750725624501,5.12231171,144.17,144.13,29.02]
[1750725624700,5.70769071,144.14,144.13,29.02]
[1750725625198,5.70769071,144.15,144.13,29.02]
[1750725625397,5.70769071,144.16,144.13,29.02]
[1750725626690,5.12231171,144.18,144.13,35.9581724]
[1750725626894,5.70769071,144.16,144.13,35.9581724]
[1750725627593,5.70769071,144.16,144.13,29.02]
[1750725629118,5.70769071,144.14,144.13,29.02]
[1750725636117,5.70769071,144.14,144.11,6.48]
[1750725636296,18.64964886,144.11,144.05,29.0]
[1750725636491,5.70769071,144.06,144.05,29.0]
[1750725636816,5.70769071,144.06,144.03,6.46]
[1750725637032,5.70769071,144.04,144.03,6.46]
[1750725637392,26.14216157,144.08,144.03,6.46]
[1750725637690,5.70769071,144.04,144.03,6.46]
[1750725639894,5.70769071,144.05,144.03,6.46]
[1750725640616,26.0,144.12,144.03,6.46]
[1750725640916,5.70769071,144.08,144.05,1.6083]
[1750725641114,5.70769071,144.08,144.06,29.0]
[1750725642714,5.70769071,144.09,144.06,29.0]
[1750725643511,5.70769071,144.1,144.06,125.34145792]
[1750725643714,31.10593276,144.13,144.06,125.34145792]
[1750725643920,5.70769071,144.1,144.06,131.04914863]
[1750725644615,5.70769071,144.1,144.06,125.34145792]
[1750725645114,5.70769071,144.09,144.06,125.34145792]
[1750725645516,5.70769071,144.08,144.06,118.4]
[1750725645710,5.70769071,144.07,144.06,29.0]
[1750725647016,18.64964886,144.11,144.06,29.0]
[1750725647330,5.70769071,144.08,144.06,29.0]
[1750725647500,5.70769071,144.07,144.06,29.0]
[1750725649310,5.70769071,144.07,144.03,6.46]
[1750725649311,5.70769071,144.07,144.04,29.0]
[1750725649517,5.70769071,144.05,144.04,29.0]
[1750725651293,5.70769071,144.05,144.03,6.46]
[1750725651488,26.0,144.05,144.04,29.0]
[1750725652417,26.0,144.05,144.02,6.94339942]
[1750725652611,5.70769071,144.04,144.02,6.94339942]
[1750725653523,5.70769071,144.04,144.03,29.0]
[1750725653818,5.70769071,144.05,144.03,29.0]
[1750725654515,5.70769071,144.05,144.03,35.94282227]
[1750725655925,5.70769071,144.07,144.03,35.94282227]
[1750725656115,5.70769071,144.08,144.04,6.46]
[1750725656298,1.5818,144.14,144.05,29.0]
[1750725656494,5.70769071,144.09,144.05,30.5037]
[1750725656700,5.70769071,144.09,144.05,119.9037]
[1750725657723,5.70769071,144.09,144.06,6.94155213]
[1750725657908,5.70769071,144.09,144.07,29.0]
[1750725658418,5.70769071,144.11,144.07,29.0]
[1750725659223,5.70769071,144.1,144.07,29.0]
[1750725659417,5.70769071,144.09,144.07,29.0]
[1750725659923,5.70769071,144.09,144.07,35.94077539]
[1750725660425,5.70769071,144.1,144.07,35.94077539]
[1750725660924,5.70769071,144.09,144.07,35.94077539]
[1750725661228,5.70769071,144.08,144.07,29.0]
[1750725663813,18.64964886,144.11,144.07,29.0]
[1750725664027,5.70769071,144.08,144.07,29.0]
[1750725666111,5.70769071,144.09,144.07,35.94107031]
[1750725666313,5.70769071,144.08,144.07,29.0]
[1750725670542,5.70769071,144.09,144.07,29.0]
[1750725673331,18.64964886,144.11,144.07,29.0]
[1750725673521,5.70769071,144.08,144.07,29.0]
[1750725676240,5.70769071,144.09,144.07,29.0]
[1750725676444,5.70769071,144.08,144.07,29.0]
[1750725676815,5.70769071,144.09,144.07,29.0]
[1750725678943,18.64964886,144.11,144.07,29.0]
[1750725679157,5.70769071,144.08,144.07,29.0]
[1750725680740,18.64964886,144.12,144.07,29.0]
[1750725680946,5.70769071,144.08,144.07,29.0]
[1750725683442,5.70769071,144.09,144.07,29.0]
[1750725684024,5.70769071,144.1,144.07,35.94084501]
[1750725685250,5.70769071,144.1,144.07,29.0]
[1750725686621,5.70769071,144.1,144.07,35.94104555]
[1750725688028,5.70769071,144.11,144.07,35.94104555]
[1750725689353,5.70769071,144.1,144.07,35.94104555]
[1750725690248,5.70769071,144.11,144.07,35.94104555]
[1750725692140,10.82774698,144.12,144.07,43.17963626]
[1750725692448,5.70769071,144.12,144.07,43.17963626]
[1750725692654,5.70769071,144.11,144.07,37.47194555]
[1750725693043,5.70769071,144.1,144.07,37.47194555]
[1750725695834,31.12005627,144.13,144.07,37.47194555]
[1750725696030,5.70769071,144.11,144.07,37.47194555]
[1750725696240,31.12005627,144.13,144.07,37.47194555]
[1750725696555,5.70769071,144.11,144.07,43.17963626]
[1750725698175,5.70769071,144.1,144.07,37.47194555]
[1750725702054,10.82774698,144.11,144.07,37.47194555]
[1750725702256,5.70769071,144.11,144.07,37.47194555]
[1750725702454,5.70769071,144.08,144.02,7.8868]
[1750725702656,5.70769071,144.05,144.03,28.94]
[1750725703057,5.70769071,144.05,144.04,28.94]
[1750725704053,5.70769071,144.06,144.04,28.94]
[1750725704270,5.70769071,144.06,144.02,21.25027339]
[1750725704458,5.70769071,144.06,144.03,28.94]
[1750725705060,5.70769071,144.05,144.03,28.94]
[1750725705248,5.70769071,144.06,144.03,28.94]
[1750725705878,5.70769071,144.04,144.02,7.9675]
[1750725706060,5.70769071,144.03,144.02,6.42]
[1750725706374,5.70769071,144.03,144.02,35.36]
[1750725708073,5.70769071,144.04,144.02,35.36]
[1750725708376,5.70769071,144.04,144.02,6.42]
[1750725708579,5.70769071,144.04,144.03,28.94]
[1750725709269,5.70769071,144.05,144.03,28.94]
[1750725711084,18.64964886,144.08,144.03,28.94]
[1750725711262,5.70769071,144.05,144.03,28.94]
[1750725712354,5.70769071,144.04,144.03,28.94]
[1750725713671,5.70769071,144.04,144.02,6.42]
[1750725713876,5.70769071,144.04,144.03,28.94]
[1750725715075,18.64964886,144.03,143.96,45.02]
[1750725715270,5.70769071,143.99,143.96,51.9663709]
[1750725715472,5.70769071,143.98,143.96,45.02]
[1750725715777,5.70769071,143.98,143.97,28.92]
[1750725717479,5.70769071,143.99,143.97,28.92]
[1750725720060,5.70769071,143.99,143.95,6.42]
[1750725720061,5.70769071,143.98,143.95,6.42]
[1750725720370,0.14216157,143.99,143.95,6.42]
[1750725720570,0.14216157,143.99,143.95,35.36]
[1750725720963,0.14216157,143.99,143.95,6.42]
[1750725720964,18.64964886,143.96,143.95,6.42]
[1750725721168,18.64964886,143.96,143.9,8.0445]
[1750725721396,5.70769071,143.93,143.92,28.94]
[1750725721891,5.70769071,143.93,143.9,6.4]
[1750725722190,5.70769071,143.94,143.92,28.94]
[1750725722562,5.70769071,143.93,143.92,28.94]
[1750725723205,5.70769071,143.93,143.9,6.4]
[1750725723484,5.70769071,143.91,143.85,6.4]
[1750725723683,5.70769071,143.88,143.86,28.94]
[1750725724064,24.35733957,143.92,143.86,28.94]
[1750725724065,5.70769071,143.89,143.86,28.94]
[1750725724760,5.70769071,143.93,143.88,5.70769071]
[1750725724968,5.70769071,143.96,143.89,28.94]
[1750725725285,5.70769071,143.96,143.91,5.70769071]
[1750725725286,5.70769071,143.95,143.91,5.70769071]
[1750725725581,5.70769071,143.94,143.92,28.94]
[1750725725767,5.70769071,143.93,143.92,28.94]
[1750725726784,5.70769071,143.94,143.92,28.94]
[1750725727989,26.0,143.96,143.92,28.94]
[1750725728171,5.70769071,143.95,143.92,28.94]
[1750725728507,5.70769071,143.97,143.92,41.59590311]
[1750725728681,5.70769071,143.98,143.93,5.70769071]
[1750725728872,1.6097,144.04,143.94,5.70769071]
[1750725729072,5.70769071,144.0,143.95,34.64769071]
[1750725729682,26.0,144.0,143.95,34.64769071]
[1750725729891,5.70769071,144.01,143.96,5.70769071]
[1750725730173,5.70769071,144.01,143.96,12.65392903]
[1750725730590,5.70769071,144.0,143.95,41.59444579]
[1750725732185,5.70769071,143.99,143.95,28.94]
[1750725732498,5.70769071,143.97,143.95,28.94]
[1750725733007,5.70769071,143.98,143.95,28.94]
[1750725733495,5.70769071,143.97,143.95,28.94]
[1750725734086,5.70769071,143.98,143.95,28.94]
[1750725734485,5.70769071,143.97,143.95,28.94]
[1750725734683,0.14216157,144.0,143.95,28.94]
[1750725734889,5.70769071,143.97,143.95,28.94]
[1750725735479,0.14216157,144.0,143.91,95.8]
[1750725735480,5.70769071,143.96,143.91,95.8]
[1750725735693,5.70769071,143.95,143.92,28.92]
[1750725735998,5.70769071,143.94,143.92,28.92]
[1750725736172,5.70769071,143.95,143.92,28.92]
[1750725737106,5.70769071,143.96,143.92,28.92]
[1750725737309,5.70769071,143.95,143.92,28.92]
[1750725738883,5.70769071,143.94,143.92,28.92]
[1750725740996,5.70769071,143.93,143.86,6.6512]
[1750725741312,0.14216157,143.96,143.85,89.4]
[1750725741313,44.79181043,143.91,143.88,6.4]
[1750725741480,5.70769071,143.89,143.88,6.4]
[1750725742984,44.64964886,143.91,143.88,6.4]
[1750725743185,5.70769071,143.89,143.88,6.4]
[1750725743597,5.70769071,143.9,143.88,6.4]
[1750725743884,31.70769071,143.91,143.88,6.4]
[1750725746205,5.70769071,143.92,143.88,6.4]
[1750725746402,26.0,143.94,143.88,6.4]
[1750725746608,5.70769071,143.91,143.88,6.4]
[1750725747778,18.64964886,143.93,143.88,6.4]
[1750725747979,5.70769071,143.91,143.88,6.4]
[1750725750215,18.64964886,143.93,143.88,6.4]
[1750725750382,5.70769071,143.91,143.88,6.4]
[1750725753686,5.70769071,143.92,143.88,6.4]
[1750725754260,5.70769071,143.91,143.88,6.4]
[1750725755015,5.70769071,143.92,143.88,6.4]
[1750725756335,5.70769071,143.9,143.88,6.4]
[1750725756617,5.70769071,143.89,143.88,6.4]
[1750725757417,24.35733957,143.89,143.88,6.4]
[1750725758417,18.64964886,143.88,143.83,51.44]
[1750725758608,5.70769071,143.86,143.84,28.9]
[1750725759204,5.70769071,143.87,143.84,28.9]
[1750725760327,5.70769071,143.86,143.84,28.9]
[1750725761129,18.64964886,143.89,143.84,28.9]
[1750725761323,5.70769071,143.87,143.84,28.9]
[1750725761508,5.70769071,143.88,143.84,28.9]
[1750725764008,5.70769071,143.87,143.84,28.9]
[1750725764409,5.70769071,143.88,143.84,34.60769071]
[1750725764832,26.0,143.9,143.84,34.60769071]
[1750725764833,5.70769071,143.9,143.85,5.70769071]
[1750725765630,18.79181043,143.93,143.84,118.3]
[1750725765631,0.14216157,143.91,143.84,118.3]
[1750725765841,5.70769071,143.86,143.84,28.9]
[1750725766014,5.70769071,143.87,143.84,28.9]
[1750725768335,5.70769071,143.87,143.83,45.04]
[1750725768539,5.70769071,143.84,143.83,28.9]
[1750725768709,26.0,143.9,143.83,28.9]
[1750725768909,5.70769071,143.87,143.83,28.9]
[1750725769214,5.70769071,143.88,143.83,34.60769071]
[1750725769710,5.70769071,143.87,143.83,28.9]
[1750725770114,5.70769071,143.87,143.83,34.60769071]
[1750725770749,5.70769071,143.88,143.83,41.56033335]
[1750725771246,5.70769071,143.87,143.83,34.60769071]
[1750725771421,5.70769071,143.87,143.83,28.9]
[1750725771620,5.70769071,143.88,143.83,41.56029731]
[1750725773031,5.70769071,143.87,143.83,28.9]
[1750725773237,26.0,143.89,143.83,28.9]
[1750725773238,5.70769071,143.86,143.83,28.9]
[1750725773648,5.70769071,143.87,143.83,28.9]
[1750725773831,5.70769071,143.86,143.83,28.9]
[1750725774433,5.70769071,143.85,143.83,28.9]
[1750725775439,5.70769071,143.86,143.83,28.9]
[1750725777241,5.70769071,143.85,143.83,28.9]
[1750725778148,5.70769071,143.89,143.84,12.19109071]
[1750725778944,5.70769071,143.89,143.84,6.4834]
[1750725779249,5.70769071,143.91,143.87,1.6231]
[1750725779435,18.64964886,143.94,143.88,28.9]
[1750725779617,5.70769071,143.92,143.88,28.9]
[1750725779822,5.70769071,143.91,143.88,28.9]
[1750725780239,5.70769071,143.92,143.88,28.9]
[1750725780647,5.70769071,143.91,143.88,28.9]
[1750725781033,5.70769071,143.92,143.88,28.9]
[1750725781233,5.70769071,143.91,143.88,28.9]
[1750725783645,5.70769071,143.93,143.89,5.70769071]
[1750725783840,5.70769071,143.94,143.89,5.70769071]
[1750725785656,5.70769071,143.93,143.89,5.70769071]
[1750725786751,5.70769071,143.93,143.88,41.55778607]
[1750725788751,5.70769071,143.93,143.88,130.95778607]
[1750725789935,5.70769071,143.92,143.88,118.3]
[1750725790141,5.70769071,143.91,143.88,118.3]
[1750725790444,5.70769071,143.92,143.88,28.9]
[1750725791344,5.70769071,143.93,143.88,41.5578687]
[1750725792050,5.70769071,143.92,143.88,28.9]
[1750725792451,18.64964886,143.93,143.88,28.9]
[1750725792752,5.70769071,143.92,143.88,28.9]
[1750725793131,5.70769071,143.93,143.88,34.60769071]
[1750725793328,5.11396609,143.95,143.88,34.60769071]
[1750725793329,23.76361495,143.95,143.88,28.9]
[1750725793671,5.70769071,143.92,143.88,35.85019854]
[1750725794450,5.70769071,143.92,143.88,28.9]
[1750725796253,5.70769071,143.91,143.88,28.9]
[1750725796758,31.70769071,143.93,143.88,41.55788528]
[1750725796955,31.70769071,143.93,143.89,5.70769071]
[1750725797969,31.70769071,143.93,143.89,12.65726128]
[1750725799574,31.70769071,143.93,143.89,6.94957057]
[1750725800161,12.63207034,143.99,143.9,5.70769071]
[1750725800454,5.70769071,143.95,143.91,28.88]
[1750725801247,5.70769071,143.94,143.91,28.88]
[1750725802045,5.70769071,143.92,143.91,28.88]
[1750725805966,5.70769071,143.92,143.87,103.13079071]
[1750725806137,5.70769071,143.91,143.88,28.86]
[1750725806778,5.70769071,143.9,143.88,28.86]
[1750725807135,5.70769071,143.91,143.88,28.86]
[1750725808166,23.76059551,143.95,143.88,28.86]
[1750725808462,5.70769071,143.91,143.88,28.86]
[1750725808640,5.70769071,143.91,143.89,28.86]
[1750725808840,5.70769071,143.92,143.89,28.86]
[1750725809856,5.70769071,143.91,143.89,28.86]
[1750725810553,5.70769071,143.9,143.89,28.86]
[1750725811459,5.70769071,143.91,143.89,28.86]
[1750725812461,5.70769071,143.92,143.89,28.86]
[1750725813070,5.70769071,143.91,143.89,28.86]
[1750725815274,5.70769071,143.92,143.89,28.86]
[1750725815568,26.0,143.93,143.89,28.86]
[1750725815765,5.70769071,143.92,143.89,28.86]
[1750725817461,26.0,143.93,143.89,28.86]
[1750725817773,26.0,143.93,143.89,34.56769071]
[1750725817977,31.70769071,143.93,143.89,28.86]
[1750725818767,31.70769071,143.93,143.84,1.6012]
[1750725818768,5.70769071,143.9,143.84,1.6012]
[1750725818973,5.70769071,143.87,143.84,30.4612]
[1750725819173,24.35733957,143.89,143.84,30.4612]
[1750725819364,5.70769071,143.9,143.84,43.12096134]
[1750725819558,5.70769071,143.9,143.84,36.16889071]
[1750725820068,5.70769071,143.88,143.84,30.4612]
[1750725820882,5.70769071,143.87,143.85,28.86]
[1750725821873,5.70769071,143.88,143.85,28.86]
[1750725822076,31.70769071,143.89,143.85,28.86]
[1750725823356,31.70769071,143.89,143.84,1.6012]
[1750725823563,31.70769071,143.89,143.86,28.86]
[1750725824676,31.70769071,143.91,143.86,34.56769071]
[1750725824978,5.70769071,143.9,143.86,28.86]
[1750725826278,31.70769071,143.91,143.86,41.51889287]
[1750725827063,31.70769071,143.91,143.86,35.81120216]
[1750725827377,31.70769071,143.91,143.86,34.56769071]
[1750725827979,5.70769071,143.92,143.87,5.70769071]
[1750725828581,5.70769071,143.92,143.87,12.06769071]
[1750725830075,5.70769071,143.92,143.87,108.41834667]
[1750725830481,5.70769071,143.92,143.87,102.71065596]
[1750725830685,31.70769071,143.93,143.88,5.70769071]
[1750725830889,31.70769071,143.93,143.89,28.84]
[1750725831190,5.70769071,143.96,143.91,5.70769071]
[1750725831378,5.70769071,143.95,143.92,28.84]
[1750725832965,5.70769071,143.94,143.92,28.84]
[1750725833688,5.70769071,143.95,143.92,28.84]
[1750725833885,5.70769071,143.94,143.92,28.84]
[1750725834093,6.40007034,144.0,143.93,11.82439071]
[1750725834279,9.33100147,144.01,143.96,5.70769071]
[1750725834474,9.33100147,144.01,143.97,5.70769071]
[1750725834673,3.62331076,144.01,143.98,5.70769071]
[1750725835078,3.62331076,144.01,143.99,34.54769071]
[1750725835378,3.62331076,144.01,144.0,13.51409071]
[1750725835581,5.70769071,144.08,144.0,20.45853515]
[1750725835893,31.70769071,144.08,144.03,5.70769071]
[1750725836204,26.0,144.08,144.04,34.54769071]
[1750725836500,5.70769071,144.09,144.04,34.54769071]
[1750725836703,1.5068,144.12,144.04,34.54769071]
[1750725836704,1.5068,144.12,144.04,28.84]
[1750725836870,5.70769071,144.06,144.04,28.84]
[1750725837269,24.35733957,144.07,144.04,28.84]
[1750725838193,5.70769071,144.07,144.04,28.84]
[1750725839009,26.0,144.08,144.04,28.84]
[1750725839010,5.70769071,144.06,144.04,28.84]
[1750725839166,26.0,144.06,144.04,28.84]
[1750725839370,5.70769071,144.05,144.04,28.84]
[1750725840374,5.70769071,144.06,144.04,28.84]
[1750725840591,24.35733957,144.06,144.04,28.84]
[1750725840791,24.35733957,144.05,144.04,28.84]
[1750725840976,24.35733957,144.05,144.01,28.82]
[1750725841175,5.70769071,144.04,144.01,28.82]
[1750725842777,5.70769071,144.04,144.0,28.82]
[1750725842778,5.70769071,144.02,144.0,28.82]
[1750725843085,5.70769071,144.01,143.99,6.34]
[1750725843274,5.70769071,144.0,143.99,6.34]
[1750725844809,5.70769071,144.0,143.96,7.8538]
[1750725844981,5.70769071,144.0,143.97,28.82]
[1750725846993,26.0,144.02,143.96,7.8538]
[1750725847198,5.70769071,144.01,143.97,28.82]
[1750725847497,5.70769071,144.01,143.96,13.56149071]
[1750725847697,5.70769071,144.01,143.97,35.16]
[1750725847906,5.70769071,144.0,143.97,35.16]
[1750725850998,5.70769071,144.0,143.96,7.8538]
[1750725851206,5.70769071,144.0,143.97,28.82]
[1750725852808,5.70769071,144.03,143.97,125.16585784]
[1750725853010,5.10498319,144.09,144.0,5.70769071]
[1750725853185,5.70769071,144.05,144.01,28.82]
[1750725853704,5.70769071,144.04,144.01,28.82]
[1750725855805,31.70769071,144.05,144.01,28.82]
[1750725856396,1.533,144.1,144.02,12.04769071]
[1750725856585,5.70769071,144.09,144.04,5.70769071]
[1750725856781,5.70769071,144.1,144.05,34.50769071]
[1750725856985,16.87511371,144.16,144.07,5.70769071]
[1750725857213,5.70769071,144.13,144.08,40.84769071]
[1750725857422,5.70769071,144.13,144.09,28.8]
[1750725858113,5.70769071,144.11,144.09,28.8]
[1750725858321,5.70769071,144.1,144.09,28.8]
[1750725859287,18.64964886,144.09,144.08,6.34]
[1750725859485,24.35733957,144.09,144.08,6.34]
[1750725859791,23.35733957,144.09,144.03,6.3308]
[1750725860115,26.0,144.11,144.04,35.14]
[1750725860116,5.70769071,144.08,144.04,35.14]
[1750725863193,5.70769071,144.08,144.04,40.84769071]
[1750725863808,5.70769071,144.09,144.04,47.78999832]
[1750725865715,5.70769071,144.09,144.05,5.70769071]
[1750725866628,5.70769071,144.09,144.04,47.78999832]
[1750725867193,31.70769071,144.1,144.05,5.70769071]
[1750725868210,5.70769071,144.1,144.06,5.70769071]
[1750725868416,5.70769071,144.1,144.07,28.78]
[1750725868791,5.70769071,144.09,144.07,28.78]
[1750725877321,5.70769071,144.1,144.07,28.78]
[1750725879825,10.82063003,144.11,144.07,28.78]
[1750725880025,5.70769071,144.11,144.07,28.78]
[1750725880627,31.11293932,144.13,144.08,5.70769071]
[1750725880826,31.11293932,144.13,144.09,5.70769071]
[1750725881028,26.0,144.13,144.1,28.78]
[1750725881331,26.0,144.13,144.1,34.48769071]
[1750725881332,5.11293932,144.13,144.1,34.48769071]
[1750725881630,5.70769071,144.14,144.1,40.80769071]
[1750725881999,31.70769071,144.15,144.1,40.80769071]
[1750725882701,5.70769071,144.14,144.1,40.80769071]
[1750725883109,26.0,144.15,144.1,40.80769071]
[1750725883110,5.70769071,144.13,144.1,35.1]
[1750725884717,26.0,144.15,144.1,35.1]
[1750725884920,5.70769071,144.13,144.1,35.1]
[1750725885420,5.70769071,144.14,144.1,35.1]
[1750725887531,31.70769071,144.15,144.1,40.80769071]
[1750725888036,5.70769071,144.14,144.1,40.80769071]
[1750725888732,31.70769071,144.15,144.1,47.74723259]
[1750725888919,31.70769071,144.15,144.11,5.70769071]
[1750725889746,31.70769071,144.15,144.1,42.03954188]
[1750725889747,31.70769071,144.15,144.1,47.74723259]
[1750725892946,31.70769071,144.15,144.11,5.70769071]
[1750725893322,31.70769071,144.15,144.11,12.6467944]
[1750725893738,21.56044374,144.16,144.11,12.6467944]
[1750725893921,10.73981371,144.16,144.13,5.70769071]
[1750725894136,10.73981371,144.16,144.14,28.76]
[1750725896878,5.70769071,144.15,144.14,28.76]
[1750725897239,16.44750442,144.16,144.14,28.76]
[1750725898644,10.73981371,144.16,144.14,28.76]
[1750725901966,5.70769071,144.15,144.1,89.4]
[1750725902169,5.70769071,144.13,144.11,28.74]
[1750725902658,5.70769071,144.14,144.11,28.74]
[1750725903228,5.70769071,144.15,144.11,28.74]
[1750725903429,5.70769071,144.15,144.11,34.44769071]